bitfinex-derivatives/quotes_BTCF0:USTF0_20250106
["timestamp","ask_amount","ask_price","bid_price","bid_amount"]
[1736169070567,0.06136595,99164.0,99163.0,0.01551244]
[1736169071574,0.06136595,99164.0,99163.0,0.06594644]
[1736169072679,0.051434,99164.0,99163.0,0.06594644]
[1736169073172,0.001,99164.0,99163.0,0.06594644]
[1736169075269,0.050426,99180.0,99179.0,0.050423]
[1736169076369,0.050426,99180.0,99179.0,0.052423]
[1736169076569,0.00990014,99183.0,99179.0,0.052423]
[1736169076782,0.050424,99184.0,99179.0,0.052423]
[1736169076974,0.050424,99184.0,99183.0,0.050424]
[1736169077473,0.050426,99180.0,99179.0,0.002]
[1736169077780,0.050426,99180.0,99179.0,0.007]
[1736169078276,0.37075779,99186.0,99183.0,0.005]
[1736169078678,0.050424,99184.0,99183.0,0.005]
[1736169078882,0.050426,99180.0,99179.0,0.002]
[1736169079176,0.190426,99180.0,99179.0,0.007]
[1736169079774,0.190426,99180.0,99179.0,0.005]
[1736169081177,0.050434,99164.0,99163.0,0.05194644]
[1736169082488,0.050434,99164.0,99163.0,0.05694644]
[1736169082682,0.050432,99168.0,99167.0,0.05043]
[1736169085088,0.050432,99168.0,99167.0,0.05943]
[1736169085284,0.050432,99168.0,99167.0,0.06343]
[1736169085685,0.050425,99181.0,99175.0,0.050428]
[1736169085888,0.05043,99176.0,99175.0,0.050428]
[1736169086088,0.20043,99176.0,99175.0,0.050428]
[1736169087884,0.20043,99176.0,99175.0,0.053428]
[1736169088084,0.15,99176.0,99175.0,0.053428]
[1736169088285,0.15,99176.0,99175.0,0.059428]
[1736169088793,0.1,99176.0,99175.0,0.059428]
[1736169090093,0.050427,99177.0,99176.0,0.050428]
[1736169090295,0.050427,99177.0,99176.0,0.083128]
[1736169091592,0.050427,99177.0,99176.0,0.092128]
[1736169093593,0.06069834,99181.0,99180.0,0.050426]
[1736169093783,0.210425,99181.0,99180.0,0.050426]
[1736169094709,0.16995621,99185.0,99184.0,0.050424]
[1736169094893,0.30995621,99185.0,99184.0,0.050424]
[1736169096102,0.190423,99185.0,99184.0,0.056424]
[1736169097195,0.551223,99185.0,99184.0,0.056424]
[1736169097384,0.551223,99185.0,99184.0,0.006]
[1736169104703,0.70070007,99185.0,99184.0,0.006]
[1736169106201,0.050434,99164.0,99153.0,0.01019541]
[1736169106405,0.050434,99164.0,99154.0,0.0322]
[1736169106595,0.050434,99164.0,99163.0,0.05194644]
[1736169107400,0.050434,99164.0,99163.0,0.05694644]
[1736169107900,0.050434,99164.0,99163.0,0.00651244]
[1736169108596,0.101434,99164.0,99163.0,0.01551244]
[1736169108789,0.05044,99152.0,99151.0,0.30180047]
[1736169109089,0.41124,99152.0,99151.0,0.30180047]
[1736169109497,0.41124,99152.0,99146.0,0.050443]
[1736169109714,0.050442,99147.0,99146.0,0.050443]
[1736169110703,0.050443,99146.0,99145.0,0.30180047]
[1736169110896,0.050443,99146.0,99145.0,0.35224347]
[1736169111097,0.050443,99146.0,99145.0,0.050443]
[1736169112105,0.050443,99146.0,99145.0,0.055443]
[1736169113394,0.051443,99146.0,99145.0,0.063443]
[1736169115500,0.051443,99146.0,99145.0,0.013]
[1736169117907,0.049443,99146.0,99145.0,0.013]
[1736169119900,0.410243,99146.0,99145.0,0.013]
[1736169123398,0.049443,99146.0,99145.0,0.013]
[1736169124313,0.540243,99146.0,99145.0,0.013]
[1736169132209,0.540243,99146.0,99145.0,0.008]
[1736169133012,0.050449,99134.0,99133.0,0.0322]
[1736169134110,0.050449,99134.0,99133.0,0.0362]
[1736169135624,0.050449,99134.0,99133.0,0.0372]
[1736169137225,0.51027707,99146.0,99133.0,0.0372]
[1736169137414,0.050446,99143.0,99142.0,0.050443]
[1736169137820,0.050449,99135.0,99134.0,0.050449]
[1736169139323,0.08965324,99139.0,99133.0,0.0332]
[1736169139525,0.050449,99134.0,99133.0,0.0332]
[1736169139827,0.050449,99134.0,99133.0,0.0322]
[1736169140716,0.050449,99134.0,99133.0,0.005]
[1736169141225,0.050449,99134.0,99133.0,0.004]
[1736169141426,0.050449,99134.0,99133.0,0.005]
[1736169141725,0.110449,99134.0,99133.0,0.005]
[1736169142624,0.110449,99134.0,99133.0,0.001]
[1736169142823,0.110449,99134.0,99133.0,0.005]
[1736169145324,0.1207425,99134.0,99133.0,0.005]
[1736169148731,0.27021957,99134.0,99133.0,0.005]
[1736169148933,0.27021957,99134.0,99133.0,0.004]
[1736169149138,0.27021957,99134.0,99133.0,0.005]
[1736169149835,0.27021957,99134.0,99133.0,0.004]
[1736169150029,0.1207425,99134.0,99133.0,0.004]
[1736169151833,0.1207425,99134.0,99120.0,0.0634]
[1736169151834,0.050461,99121.0,99120.0,0.0634]
[1736169152033,0.4308,99121.0,99120.0,0.0634]
[1736169152729,0.4308,99121.0,99115.0,0.24119199]
[1736169153037,0.050463,99116.0,99115.0,0.24119199]
[1736169153233,0.200463,99116.0,99115.0,0.24119199]
[1736169153635,0.050462,99119.0,99115.0,0.24119199]
[1736169153831,0.110462,99119.0,99115.0,0.24119199]
[1736169154331,0.001,99116.0,99115.0,0.008]
[1736169154534,0.001,99116.0,99115.0,0.058464]
[1736169155131,0.001,99116.0,99115.0,0.062464]
[1736169155827,0.001,99116.0,99115.0,0.058464]
[1736169156034,0.001,99116.0,99115.0,0.054464]
[1736169156337,0.11955191,99117.0,99116.0,0.050463]
[1736169156842,0.11955191,99117.0,99116.0,0.082963]
[1736169157142,0.11955191,99117.0,99116.0,0.113963]
[1736169157143,0.0896419,99117.0,99116.0,0.113963]
[1736169158045,0.0906419,99117.0,99116.0,0.119963]
[1736169158528,0.001,99117.0,99116.0,0.122963]
[1736169170946,0.001,99117.0,99116.0,0.156063]
[1736169176343,0.11955191,99129.0,99121.0,0.050461]
[1736169176542,0.11955191,99129.0,99128.0,0.050457]
[1736169177044,0.11955191,99130.0,99129.0,0.050456]
[1736169178946,0.09774866,99140.0,99139.0,0.050451]
[1736169179145,0.00996733,99143.0,99140.0,0.050451]
[1736169183449,0.3608,99148.0,99140.0,0.050451]
[1736169185354,0.411247,99148.0,99140.0,0.050451]
[1736169185556,0.41180701,99148.0,99140.0,0.050451]
[1736169185757,0.01005881,99144.0,99140.0,0.050451]
[1736169187554,0.3608,99148.0,99140.0,0.050451]
[1736169188848,0.00991213,99145.0,99140.0,0.050451]
[1736169192056,0.06036113,99145.0,99140.0,0.050451]
[1736169193859,0.00991213,99145.0,99140.0,0.050451]
[1736169194062,0.05045,99143.0,99140.0,0.050451]
[1736169194954,0.05045,99142.0,99140.0,0.050451]
[1736169195161,0.05196347,99141.0,99140.0,0.050451]
[1736169195463,0.08286347,99141.0,99140.0,0.050451]
[1736169200055,0.20241538,99141.0,99140.0,0.050451]
[1736169201659,0.08286347,99141.0,99140.0,0.050451]
[1736169203166,0.09286347,99141.0,99140.0,0.050451]
[1736169205261,0.050455,99133.0,99132.0,0.050453]
[1736169206663,0.050455,99133.0,99132.0,0.051453]
[1736169207565,0.050455,99133.0,99132.0,0.054453]
[1736169208767,0.06037034,99133.0,99132.0,0.054453]
[1736169210771,0.06037034,99133.0,99132.0,0.23592777]
[1736169212257,0.06037034,99133.0,99132.0,0.054453]
[1736169219769,0.050455,99133.0,99132.0,0.054453]
[1736169221066,0.050455,99133.0,99132.0,0.29615529]
[1736169223862,0.050455,99133.0,99132.0,0.054453]
[1736169224173,0.050461,99121.0,99120.0,0.30180047]
[1736169224474,0.511261,99121.0,99120.0,0.30180047]
[1736169224779,0.050466,99110.0,99109.0,0.36115037]
[1736169224971,0.411266,99110.0,99109.0,0.36115037]
[1736169225673,0.3608,99110.0,99104.0,0.050469]
[1736169225868,0.050469,99105.0,99104.0,0.050469]
[1736169227162,0.050469,99105.0,99104.0,0.23589788]
[1736169228474,0.051469,99105.0,99104.0,0.23589788]
[1736169228777,0.051469,99105.0,99104.0,0.054469]
[1736169229569,0.06184195,99105.0,99104.0,0.054469]
[1736169230671,0.06184195,99105.0,99096.0,0.18142888]
[1736169230672,0.050473,99097.0,99096.0,0.18142888]
[1736169230874,0.431273,99097.0,99096.0,0.05817104]
[1736169231465,0.411273,99097.0,99096.0,0.05817104]
[1736169232078,0.411273,99097.0,99096.0,0.06017104]
[1736169232380,0.411273,99097.0,99074.0,0.0945]
[1736169232381,0.050484,99075.0,99074.0,0.0638]
[1736169232672,0.411284,99075.0,99074.0,0.0252527]
[1736169232878,0.050493,99058.0,99057.0,0.0642]
[1736169233076,0.411293,99058.0,99057.0,0.0642]
[1736169234176,0.050495,99055.0,99053.0,0.00151431]
[1736169235678,0.051495,99055.0,99053.0,0.00151431]
[1736169236975,0.051495,99055.0,99053.0,0.00451431]
[1736169237876,0.001,99055.0,99053.0,0.00451431]
[1736169238076,0.3608,99077.0,99053.0,0.00451431]
[1736169238282,0.17011461,99075.0,99066.0,0.3608]
[1736169238476,0.3608,99068.0,99064.0,0.050489]
[1736169238676,0.050485,99074.0,99065.0,0.0306]
[1736169238883,0.050486,99072.0,99057.0,0.050493]
[1736169239082,0.050486,99071.0,99054.0,0.3914]
[1736169239281,0.09783303,99070.0,99054.0,0.3914]
[1736169239678,0.09783303,99070.0,99068.0,0.050487]
[1736169239988,0.001,99075.0,99060.0,0.09783303]
[1736169240181,0.001,99075.0,99073.0,0.050485]
[1736169240890,0.3608,99077.0,99061.0,0.0315]
[1736169240891,0.3608,99077.0,99074.0,0.050484]
[1736169241574,0.3608,99077.0,99075.0,0.050484]
[1736169242389,0.3618,99077.0,99075.0,0.050484]
[1736169243487,0.3628,99077.0,99075.0,0.050484]
[1736169246889,0.3728,99077.0,99075.0,0.050484]
[1736169248593,0.3728,99077.0,99066.0,0.3608]
[1736169248795,0.3728,99077.0,99076.0,0.050483]
[1736169249497,0.012,99077.0,99076.0,0.050483]
[1736169250298,0.062483,99077.0,99076.0,0.050483]
[1736169250484,0.061483,99077.0,99076.0,0.050483]
[1736169250690,0.062483,99077.0,99076.0,0.050483]
[1736169251588,0.012,99077.0,99076.0,0.050483]
[1736169255196,9.6e-07,99083.0,99082.0,0.05048]
[1736169255800,0.1482562,99093.0,99092.0,0.050475]
[1736169255988,0.1482562,99093.0,99092.0,0.411275]
[1736169257505,0.050469,99105.0,99094.0,0.050474]
[1736169257802,0.05047,99104.0,99094.0,0.050474]
[1736169258706,0.050472,99099.0,99094.0,0.050474]
[1736169259002,0.00951446,99095.0,99094.0,0.050474]
[1736169259599,0.01351446,99095.0,99094.0,0.050474]
[1736169260300,0.06398846,99095.0,99094.0,0.050474]
[1736169263500,0.01351446,99095.0,99094.0,0.050474]
[1736169267614,0.06398846,99095.0,99094.0,0.050474]
[1736169270309,0.10398846,99095.0,99094.0,0.050474]
[1736169270509,0.06398846,99095.0,99094.0,0.050474]
[1736169270706,0.08398846,99095.0,99094.0,0.050474]
[1736169272616,0.44478846,99095.0,99094.0,0.050474]
[1736169272915,0.42478846,99095.0,99094.0,0.050474]
[1736169273809,0.37431446,99095.0,99094.0,0.050474]
[1736169274120,0.01351446,99095.0,99094.0,0.050474]
[1736169274306,0.01351446,99095.0,99094.0,0.113274]
[1736169277006,0.01351446,99095.0,99094.0,0.050474]
[1736169278609,0.06398846,99095.0,99094.0,0.050474]
[1736169279316,0.42478846,99095.0,99094.0,0.050474]
[1736169282112,0.37431446,99095.0,99094.0,0.050474]
[1736169282323,0.42478846,99095.0,99094.0,0.050474]
[1736169282513,0.37431446,99095.0,99094.0,0.050474]
[1736169283014,0.01351446,99095.0,99094.0,0.050474]
[1736169289526,0.06398846,99095.0,99094.0,0.050474]
[1736169290321,0.01351446,99095.0,99094.0,0.050474]
[1736169298024,0.06398846,99095.0,99094.0,0.050474]
[1736169299921,0.01351446,99095.0,99094.0,0.050474]
[1736169308931,0.06398846,99095.0,99094.0,0.050474]
[1736169309234,0.01351446,99095.0,99094.0,0.050474]
[1736169310432,0.00994814,99106.0,99094.0,0.050474]
[1736169310433,0.17790744,99109.0,99108.0,0.050467]
[1736169310734,0.17790744,99111.0,99110.0,0.050466]
[1736169311239,0.050471,99102.0,99101.0,0.05047]
[1736169311435,0.050471,99102.0,99094.0,0.3608]
[1736169311436,0.3608,99105.0,99094.0,0.3608]
[1736169311631,0.050474,99094.0,99088.0,0.00151371]
[1736169311832,0.050474,99094.0,99093.0,0.29252343]
[1736169312033,0.050474,99094.0,99093.0,0.050475]
[1736169313031,0.050477,99089.0,99088.0,0.05199071]
[1736169315038,0.054477,99089.0,99088.0,0.05199071]
[1736169315542,0.056477,99089.0,99088.0,0.05199071]
[1736169317642,0.056477,99089.0,99088.0,0.00151371]
[1736169321542,0.076477,99089.0,99088.0,0.00151371]
[1736169324736,0.12557733,99089.0,99088.0,0.00151371]
[1736169325846,0.076477,99089.0,99088.0,0.00151371]
[1736169327548,0.050485,99077.0,99065.0,0.3608]
[1736169327847,0.050484,99075.0,99074.0,0.050484]
[1736169328047,0.050484,99075.0,99065.0,0.3608]
[1736169328048,0.3608,99076.0,99065.0,0.3608]
[1736169328242,0.050487,99071.0,99070.0,0.050485]
[1736169328835,0.050487,99071.0,99061.0,0.0316]
[1736169329036,0.050492,99059.0,99058.0,0.24221487]
[1736169330244,0.44,99059.0,99018.0,0.84112833]
[1736169330549,0.44,99059.0,99018.0,0.53140133]
[1736169330550,0.3608,99027.0,99018.0,0.53140133]
[1736169330742,0.3608,99027.0,99025.0,0.050509]
[1736169330944,0.3608,99027.0,99026.0,0.30284]
[1736169331245,0.3608,99037.0,99026.0,0.30284]
[1736169331552,0.050502,99041.0,99035.0,0.30284]
[1736169331747,0.36231577,99047.0,99030.0,0.3608]
[1736169331748,0.36231577,99047.0,99046.0,0.30284]
[1736169332044,0.36231577,99047.0,99046.0,0.353339]
[1736169332246,0.31241577,99047.0,99046.0,0.353339]
[1736169332749,0.31241577,99047.0,99046.0,0.30284]
[1736169333252,0.31441577,99047.0,99046.0,0.15125703]
[1736169333844,0.31541577,99047.0,99046.0,0.15125703]
[1736169339854,0.050499,99046.0,99044.0,0.0317]
[1736169340150,0.050506,99032.0,99018.0,0.050513]
[1736169340354,0.050508,99028.0,99018.0,0.050513]
[1736169340654,0.3608,99024.0,99019.0,0.07709322]
[1736169341149,0.3608,99024.0,99023.0,0.15125703]
[1736169342157,0.050505,99033.0,99023.0,0.15125703]
[1736169342364,0.210505,99033.0,99024.0,0.0157924]
[1736169342553,0.210505,99033.0,99032.0,0.15125703]
[1736169342858,0.05051,99025.0,99023.0,0.006]
[1736169343153,0.11051,99025.0,99023.0,0.006]
[1736169344352,0.19983589,99025.0,99023.0,0.006]
[1736169344553,0.19983589,99025.0,99023.0,0.009]
[1736169344760,0.19983589,99025.0,99024.0,0.006]
[1736169345154,0.050517,99011.0,99010.0,0.0307]
[1736169345356,0.05052,99004.0,98986.0,0.3608]
[1736169345555,0.451317,99011.0,98987.0,0.0317]
[1736169345556,0.3608,99003.0,98987.0,0.0317]
[1736169345750,0.050523,98999.0,98987.0,0.0317]
[1736169345945,0.060523,98999.0,98987.0,0.0317]
[1736169346457,0.090523,98999.0,98987.0,0.0317]
[1736169346761,0.050528,98988.0,98987.0,0.0317]
[1736169346965,0.050528,98988.0,98987.0,0.18295703]
[1736169348052,0.050528,98988.0,98987.0,0.18695703]
[1736169348248,0.08915284,98997.0,98987.0,0.54775703]
[1736169348453,0.13967684,98997.0,98996.0,0.15125703]
[1736169348658,0.050524,98997.0,98996.0,0.16705351]
[1736169348861,0.050524,98997.0,98996.0,0.15125703]
[1736169349260,0.11919475,98999.0,98988.0,0.3608]
[1736169349261,0.050528,98990.0,98988.0,0.3608]
[1736169349461,0.050528,98988.0,98987.0,0.0357]
[1736169349655,0.050528,98988.0,98987.0,0.18695703]
[1736169349848,0.050528,98988.0,98987.0,0.22803191]
[1736169350052,0.050528,98988.0,98987.0,0.18695703]
[1736169350654,0.050528,98988.0,98987.0,0.18595703]
[1736169351855,0.051528,98988.0,98987.0,0.15925703]
[1736169352360,0.051528,98988.0,98987.0,0.008]
[1736169353254,0.191528,98988.0,98987.0,0.008]
[1736169353450,0.050532,98981.0,98980.0,0.0329]
[1736169353958,0.050532,98981.0,98980.0,0.18415703]
[1736169354555,0.050532,98981.0,98980.0,0.18815703]
[1736169354959,0.050532,98981.0,98980.0,0.24368903]
[1736169354960,0.001,98981.0,98980.0,0.24368903]
[1736169357061,0.08905603,98988.0,98987.0,0.050529]
[1736169357258,0.08905603,98988.0,98987.0,0.56258603]
[1736169357464,0.08905603,98988.0,98987.0,0.20178603]
[1736169357862,0.050528,98990.0,98987.0,0.20178603]
[1736169358067,0.48059476,98995.0,98989.0,0.15125703]
[1736169358269,0.47999475,98995.0,98994.0,0.15125703]
[1736169359260,0.4108,98995.0,98994.0,0.15125703]
[1736169359665,0.4138,98995.0,98994.0,0.15125703]
[1736169360262,0.4148,98995.0,98994.0,0.15125703]
[1736169360573,0.050528,98988.0,98987.0,0.050529]
[1736169360765,0.140528,98988.0,98987.0,0.050529]
[1736169360963,0.050532,98982.0,98981.0,0.050532]
[1736169361163,0.050532,98980.0,98979.0,0.0316]
[1736169362968,0.054532,98980.0,98979.0,0.0316]
[1736169363872,0.056532,98980.0,98979.0,0.0316]
[1736169365087,0.052532,98980.0,98979.0,0.0316]
[1736169365281,0.056532,98980.0,98979.0,0.0316]
[1736169365675,0.29565098,98980.0,98979.0,0.0316]
[1736169365875,0.29165098,98980.0,98979.0,0.0316]
[1736169366082,0.29565098,98980.0,98979.0,0.0316]
[1736169366277,0.29565098,98980.0,98973.0,0.050536]
[1736169366278,0.050536,98974.0,98973.0,0.050536]
[1736169366593,0.411336,98974.0,98973.0,0.050536]
[1736169369486,0.050538,98970.0,98969.0,0.0311]
[1736169369885,0.050539,98967.0,98962.0,0.050542]
[1736169370093,0.3628,98974.0,98962.0,0.050542]
[1736169370290,0.050541,98963.0,98958.0,0.3608]
[1736169370484,0.3608,98966.0,98959.0,0.0333]
[1736169370692,0.3608,98966.0,98965.0,0.05054]
[1736169371392,0.050536,98973.0,98959.0,0.0333]
[1736169371697,0.050537,98971.0,98970.0,0.050537]
[1736169373885,0.14878219,98976.0,98966.0,0.3608]
[1736169374098,0.050527,98991.0,98982.0,0.050531]
[1736169374395,0.3608,98994.0,98987.0,0.050529]
[1736169374796,0.3608,99015.0,98987.0,0.411329]
[1736169374997,0.3608,99015.0,98987.0,0.6608]
[1736169375193,0.3608,99015.0,99009.0,0.050517]
[1736169375194,0.050517,99010.0,99009.0,0.050517]
[1736169375395,0.20755868,99012.0,99001.0,0.3608]
[1736169375699,0.20755868,99012.0,99011.0,0.050517]
[1736169376097,0.25807468,99012.0,99011.0,0.050517]
[1736169376297,0.050519,99007.0,99006.0,0.050519]
[1736169376894,0.009,99010.0,99009.0,0.050518]
[1736169377095,0.26691094,99012.0,99011.0,0.050517]
[1736169377296,0.21639494,99012.0,99011.0,0.050517]
[1736169377900,0.017,99012.0,99011.0,0.050517]
[1736169378604,0.008,99012.0,99011.0,0.050517]
[1736169378991,0.21541511,99012.0,99011.0,0.050517]
[1736169379302,0.22441511,99012.0,99011.0,0.050517]
[1736169381004,0.06614537,99012.0,99011.0,0.050517]
[1736169382200,0.017,99012.0,99011.0,0.050517]
[1736169384107,0.050519,99006.0,99005.0,0.050519]
[1736169384497,0.050519,99006.0,98989.0,0.3608]
[1736169384498,0.3608,99006.0,98989.0,0.3608]
[1736169384697,0.050524,98996.0,98994.0,0.050525]
[1736169384910,0.050524,98996.0,98995.0,0.23107591]
[1736169385408,0.050524,98996.0,98995.0,0.050525]
[1736169386108,0.059524,98996.0,98995.0,0.050525]
[1736169387505,0.064524,98996.0,98995.0,0.050525]
[1736169389008,0.144524,98996.0,98989.0,0.411328]
[1736169389207,0.050527,98990.0,98989.0,0.411328]
[1736169390705,0.08958999,98994.0,98993.0,0.050526]
[1736169390903,0.14011499,98994.0,98993.0,0.050526]
[1736169391911,0.14911499,98994.0,98993.0,0.050526]
[1736169392708,0.059525,98994.0,98993.0,0.050526]
[1736169393012,0.063525,98994.0,98993.0,0.050526]
[1736169393814,0.013,98994.0,98993.0,0.050526]
[1736169401809,0.063525,98994.0,98993.0,0.050526]
[1736169404917,0.06341221,98994.0,98993.0,0.050526]
[1736169408608,0.06341221,98994.0,98991.0,0.3608]
[1736169408609,0.050526,98992.0,98991.0,0.3608]
[1736169408811,0.05053,98988.0,98987.0,0.050528]
[1736169409815,0.17006018,98988.0,98987.0,0.050528]
[1736169410323,0.17006018,98988.0,98981.0,0.18285331]
[1736169410324,0.050531,98982.0,98981.0,0.18285331]
[1736169410523,0.411331,98982.0,98981.0,0.18285331]
[1736169411215,0.411331,98982.0,98981.0,0.00151541]
[1736169411518,0.050534,98976.0,98975.0,0.050535]
[1736169412114,0.17010535,98976.0,98975.0,0.050535]
[1736169413012,0.17310535,98976.0,98975.0,0.050535]
[1736169414023,0.053534,98976.0,98975.0,0.050535]
[1736169415226,0.050537,98971.0,98970.0,0.411337]
[1736169417221,0.21327135,98975.0,98970.0,0.3608]
[1736169417532,0.17010635,98975.0,98974.0,0.050536]
[1736169417722,0.20070635,98975.0,98974.0,0.050536]
[1736169418115,0.21059362,98975.0,98974.0,0.050536]
[1736169418520,0.21159362,98975.0,98974.0,0.050536]
[1736169418724,0.21359362,98975.0,98974.0,0.050536]
[1736169419221,0.09402227,98975.0,98974.0,0.050536]
[1736169419621,0.050537,98971.0,98970.0,0.3608]
[1736169420024,0.210537,98971.0,98970.0,0.3608]
[1736169420822,0.05054,98965.0,98956.0,0.1813379]
[1736169421133,0.05054,98965.0,98964.0,0.050541]
[1736169422139,0.14110241,98965.0,98964.0,0.050541]
[1736169422438,0.14110241,98965.0,98964.0,0.051541]
[1736169422739,0.14010241,98965.0,98964.0,0.052541]
[1736169424743,0.15029835,98965.0,98964.0,0.052541]
[1736169425247,0.06073594,98965.0,98964.0,0.052541]
[1736169425828,0.08956241,98966.0,98964.0,0.002]
[1736169426038,0.08956241,98966.0,98965.0,0.05054]
[1736169426435,0.09987149,98966.0,98965.0,0.05054]
[1736169427432,0.08956241,98966.0,98965.0,0.05054]
[1736169427837,0.08956241,98966.0,98965.0,0.05154]
[1736169428036,0.15017135,98975.0,98965.0,0.05154]
[1736169428037,0.08956241,98970.0,98969.0,0.050538]
[1736169428234,0.14010041,98970.0,98969.0,0.050538]
[1736169428442,0.24010041,98970.0,98969.0,0.050538]
[1736169429843,0.24010041,98970.0,98969.0,0.051538]
[1736169430544,0.150538,98970.0,98969.0,0.051538]
[1736169434535,0.11957135,98973.0,98969.0,0.051538]
[1736169434739,0.11957135,98973.0,98972.0,0.050537]
[1736169435636,0.08967541,98974.0,98973.0,0.050536]
[1736169436945,0.08967541,98975.0,98974.0,0.050536]
[1736169438340,0.11957135,98980.0,98979.0,0.050533]
[1736169438536,0.14955892,98989.0,98988.0,0.050528]
[1736169440547,0.11974305,98990.0,98989.0,0.050528]
[1736169441847,0.11974305,98993.0,98992.0,0.050526]
[1736169442949,0.12374305,98993.0,98992.0,0.050526]
[1736169443248,0.004,98993.0,98992.0,0.050526]
[1736169444152,0.14955892,99004.0,99003.0,0.050521]
[1736169444448,0.14955892,99006.0,99003.0,0.3608]
[1736169444650,0.14955892,99006.0,99005.0,0.05052]
[1736169445841,0.15855892,99006.0,99005.0,0.05052]
[1736169446457,0.015,99006.0,99005.0,0.05052]
[1736169448845,0.065519,99006.0,99005.0,0.05052]
[1736169449448,0.05052,99004.0,99003.0,0.3608]
[1736169449650,0.05052,99004.0,99003.0,0.050521]
[1736169450154,0.015,99006.0,98996.0,0.1813379]
[1736169450455,0.015,99006.0,98992.0,0.3608]
[1736169450456,0.050523,98999.0,98998.0,0.050523]
[1736169451050,0.009,99004.0,99003.0,0.050521]
[1736169451356,0.10552,99004.0,99003.0,0.051521]
[1736169451546,0.09652,99004.0,99003.0,0.051521]
[1736169452256,0.015,99004.0,99003.0,0.051521]
[1736169453349,0.02513703,99004.0,99003.0,0.051521]
[1736169454064,0.16565703,99004.0,99003.0,0.051521]
[1736169456755,0.015,99004.0,99003.0,0.051521]
[1736169458563,0.085,99004.0,99003.0,0.001]
[1736169458756,0.13552,99004.0,99003.0,0.001]
[1736169461869,0.14568267,99004.0,99003.0,0.001]
[1736169466059,0.17698267,99004.0,99003.0,0.001]
[1736169467167,0.22612602,99004.0,99003.0,0.001]
[1736169475455,0.19482602,99004.0,99003.0,0.001]
[1736169475662,0.12482602,99004.0,99003.0,0.051521]
[1736169476072,0.21568267,99004.0,99003.0,0.001]
[1736169476364,0.050528,98992.0,98991.0,0.050527]
[1736169476567,0.13,98992.0,98980.0,0.3608]
[1736169476772,0.050528,98988.0,98980.0,0.3608]
[1736169476972,0.190528,98988.0,98980.0,0.411332]
[1736169477270,0.190528,98988.0,98980.0,0.411892]
[1736169477659,0.190528,98988.0,98986.0,0.1813379]
[1736169477862,0.050529,98987.0,98986.0,0.1813379]
[1736169478067,0.190529,98987.0,98986.0,0.1813379]
[1736169478966,0.196529,98987.0,98986.0,0.1813379]
[1736169479158,0.146,98987.0,98976.0,0.050534]
[1736169479470,0.050534,98977.0,98976.0,0.050534]
[1736169480570,0.01001564,98987.0,98975.0,0.0679]
[1736169480866,0.003,98977.0,98976.0,0.050534]
[1736169481064,0.14961109,98987.0,98986.0,0.050529]
[1736169481265,0.17917437,98996.0,98995.0,0.050525]
[1736169481861,0.17917437,98996.0,98995.0,0.411325]
[1736169482057,0.050523,98999.0,98998.0,0.050523]
[1736169482760,0.01021926,99003.0,99002.0,0.050521]
[1736169482965,0.050517,99011.0,99010.0,0.050516]
[1736169484176,0.059517,99011.0,99010.0,0.050516]
[1736169485273,0.050521,99005.0,99004.0,0.05052]
[1736169486966,0.065521,99005.0,99004.0,0.05152]
[1736169488171,0.065521,99005.0,99004.0,0.001]
[1736169491071,0.065521,99005.0,99004.0,0.05152]
[1736169492974,0.085521,99005.0,99004.0,0.05152]
[1736169494673,0.065521,99005.0,99004.0,0.05152]
[1736169495068,0.015,99005.0,99004.0,0.05152]
[1736169495581,0.015,99005.0,99004.0,0.08692]
[1736169498175,0.00151558,99014.0,99004.0,0.08692]
[1736169498476,0.17917437,99032.0,99004.0,0.08692]
[1736169498477,0.3707205,99027.0,99025.0,0.050509]
[1736169498685,0.130509,99026.0,99025.0,0.050509]
[1736169499773,0.08,99026.0,99025.0,0.050509]
[1736169500577,0.08,99026.0,99025.0,0.051509]
[1736169500578,0.089,99026.0,99025.0,0.051509]
[1736169500788,0.018,99026.0,99025.0,0.052509]
[1736169500974,0.050502,99040.0,99039.0,0.050502]
[1736169501176,0.060502,99040.0,99039.0,0.050502]
[1736169501388,0.17917437,99041.0,99040.0,0.050502]
[1736169502273,0.01167054,99046.0,99045.0,0.050499]
[1736169502685,0.00151504,99046.0,99045.0,0.050499]
[1736169503976,0.00451504,99046.0,99045.0,0.050499]
[1736169504180,0.01051504,99046.0,99045.0,0.051499]
[1736169504685,0.009,99046.0,99045.0,0.051499]
[1736169504883,0.05049,99064.0,99045.0,0.001]
[1736169505086,0.0342,99066.0,99059.0,0.050492]
[1736169505285,0.050492,99061.0,99059.0,0.050492]
[1736169506980,0.001,99064.0,99053.0,0.3608]
[1736169507183,0.005,99061.0,99060.0,0.050492]
[1736169507589,0.050492,99060.0,99059.0,0.001]
[1736169508088,0.050494,99056.0,99055.0,0.050494]
[1736169508288,0.005,99061.0,99059.0,0.050492]
[1736169508785,0.11934783,99073.0,99072.0,0.050486]
[1736169509992,0.12134783,99073.0,99072.0,0.051486]
[1736169510387,0.003,99073.0,99072.0,0.052486]
[1736169510782,0.11934783,99084.0,99083.0,0.05048]
[1736169511598,0.0369147,99086.0,99083.0,0.05048]
[1736169511796,0.09766331,99086.0,99084.0,0.050479]
[1736169513298,0.09766331,99086.0,99085.0,0.050479]
[1736169514396,0.0015147,99086.0,99085.0,0.051479]
[1736169515102,0.0015147,99086.0,99085.0,0.001]
[1736169515395,0.050489,99065.0,99064.0,0.00151411]
[1736169516596,0.050489,99065.0,99064.0,0.00251411]
[1736169518698,0.110489,99065.0,99064.0,0.00251411]
[1736169518898,0.050489,99065.0,99064.0,0.00251411]
[1736169519097,0.050489,99065.0,99064.0,0.05300411]
[1736169520098,0.0346,99067.0,99064.0,0.00251411]